bitfinex/quotes_SOLUSD_20250520
["timestamp","ask_amount","ask_price","bid_price","bid_amount"]
[1747736799945,20.98321342,166.8,166.75,17.98]
[1747736802841,33.65783915,166.8,166.72,26.0]
[1747736803033,63.63385833,166.8,166.72,26.0]
[1747736803216,137.0,166.79,166.72,26.0]
[1747736803534,20.9857297,166.78,166.71,17.98]
[1747736806950,20.9857297,166.78,166.74,26.0]
[1747736809043,20.9857297,166.78,166.71,43.98]
[1747736817559,50.96534356,166.78,166.71,26.0]
[1747736817765,50.96534356,166.78,166.72,17.98]
[1747736819642,20.9857297,166.78,166.72,17.98]
[1747736820765,20.9857297,166.78,166.73,3.42942661]
[1747736822263,20.9857297,166.78,166.72,17.98]
[1747736823154,50.96534356,166.78,166.72,17.98]
[1747736824670,20.9857297,166.78,166.72,17.98]
[1747736824871,20.9857297,166.78,166.73,18.64964886]
[1747736825861,20.9857297,166.78,166.72,17.98]
[1747736827168,20.9857297,166.78,166.73,3.43464067]
[1747736828067,20.9857297,166.78,166.73,22.08428953]
[1747736828269,20.9857297,166.78,166.74,3.43464067]
[1747736828669,5.99592277,166.78,166.74,3.43464067]
[1747736830072,5.99592277,166.78,166.74,11.18224067]
[1747736831081,20.98260075,166.81,166.75,3.43464067]
[1747736837291,50.95682291,166.81,166.75,3.43464067]
[1747736837487,20.98447148,166.79,166.75,3.43464067]
[1747736837651,12.67462573,166.77,166.75,3.43464067]
[1747736837855,0.28432314,166.75,166.71,3.43464067]
[1747736838055,12.67462573,166.74,166.71,3.43464067]
[1747736838467,12.67462573,166.73,166.71,3.43464067]
[1747736839170,12.67462573,166.73,166.67,3.43464067]
[1747736839675,20.99328214,166.72,166.67,3.43464067]
[1747736840084,5.99808061,166.72,166.67,3.43464067]
[1747736840276,5.99700149,166.75,166.68,26.0]
[1747736840856,5.99700149,166.75,166.69,3.43464067]
[1747736842774,5.99700149,166.75,166.69,9.43370796]
[1747736842959,142.99677886,166.76,166.69,27.41370796]
[1747736843771,142.99677886,166.76,166.7,9.43339056]
[1747736844893,142.99677886,166.76,166.71,3.43464067]
[1747736845671,142.99677886,166.76,166.71,9.43305642]
[1747736845873,142.99677886,166.76,166.71,35.43305642]
[1747736845874,137.0,166.76,166.71,35.43305642]
[1747736846175,137.0,166.76,166.72,3.43464067]
[1747736848776,137.0,166.76,166.72,9.4326813]
[1747736848982,137.0,166.76,166.73,17.98]
[1747736850173,137.0,166.76,166.74,3.43464067]
[1747736850374,5.99629788,166.77,166.74,3.43464067]
[1747736851610,137.0,166.76,166.74,3.43464067]
[1747736851892,155.67162722,166.75,166.68,17.98]
[1747736852094,170.66413096,166.75,166.68,17.98]
[1747736852300,170.66413096,166.75,166.66,27.5641]
[1747736852473,137.0,166.74,166.66,45.5441]
[1747736852883,137.0,166.74,166.67,3.43914668]
[1747736853799,5.99772086,166.73,166.67,3.43914668]
[1747736854604,5.99772086,166.73,166.68,3.43914668]
[1747736854803,20.99202302,166.73,166.68,3.43914668]
[1747736855683,137.0,166.72,166.66,26.0]
[1747736855912,137.0,166.72,166.62,21.7966]
[1747736855913,12.67462573,166.71,166.62,21.7966]
[1747736856079,12.67462573,166.7,166.63,17.98]
[1747736856278,12.95894887,166.71,166.63,17.98]
[1747736856586,0.28432314,166.71,166.63,17.98]
[1747736856895,5.99880023,166.7,166.63,17.98]
[1747736857101,20.99580082,166.7,166.63,17.98]
[1747736857292,0.28432314,166.69,166.64,3.43645364]
[1747736857494,12.95894887,166.69,166.64,3.43645364]
[1747736858579,0.28432314,166.69,166.64,3.43645364]
[1747736859004,20.99832012,166.68,166.64,3.43645364]
[1747736859298,20.99832012,166.68,166.61,17.98]
[1747736861207,20.99832012,166.68,166.62,3.43131056]
[1747736862409,6.00024,166.66,166.61,17.98]
[1747736863109,137.0,166.65,166.6,43.98]
[1747736863297,137.0,166.65,166.52,15.01281997]
[1747736863298,137.0,166.64,166.55,18.64964886]
[1747736863606,0.28432314,166.62,166.54,28.02936135]
[1747736863794,0.28432314,166.62,166.54,19.6089]
[1747736864595,21.00714242,166.61,166.54,19.6089]
[1747736865803,21.00714242,166.61,166.54,1.6289]
[1747736868501,137.0,166.6,166.54,1.6289]
[1747736869601,6.00276127,166.59,166.54,1.6289]
[1747736870537,21.00966444,166.59,166.54,1.6289]
[1747736870707,21.00966444,166.59,166.53,44.0]
[1747736870911,6.00276127,166.59,166.54,18.64964886]
[1747736875800,21.00966444,166.59,166.54,18.64964886]
[1747736876323,21.00966444,166.59,166.54,18.0]
[1747736876821,21.00966444,166.59,166.53,26.0]
[1747736877119,21.00966444,166.59,166.53,44.0]
[1747736879305,21.00966444,166.59,166.53,18.0]
[1747736881204,21.00966444,166.59,166.51,62.64964886]
[1747736884249,21.00966444,166.59,166.51,26.0]
[1747736884452,33.68429017,166.59,166.51,44.0]
[1747736885725,21.00966444,166.59,166.51,44.0]
[1747736886453,21.00966444,166.59,166.51,26.0]
[1747736888117,21.00966444,166.59,166.5,19.6072]
[1747736888118,21.00966444,166.59,166.5,1.6072]
[1747736888328,51.02347079,166.59,166.5,19.6072]
[1747736888644,63.69809652,166.59,166.5,19.6072]
[1747736888835,21.00966444,166.59,166.51,18.64964886]
[1747736889444,6.00276127,166.59,166.54,26.0]
[1747736889823,6.00276127,166.59,166.55,18.0]
[1747736890957,15.0049802,166.62,166.55,18.0]
[1747736896352,15.0049802,166.62,166.56,44.64964886]
[1747736896534,15.0049802,166.62,166.58,18.64964886]
[1747736896740,6.00132029,166.63,166.58,18.64964886]
[1747736896939,21.00462101,166.63,166.58,18.64964886]
[1747736911772,6.00132029,166.63,166.6,18.64964886]
[1747736911951,15.00144231,166.66,166.62,18.64964886]
[1747736911952,6.00060006,166.65,166.62,18.64964886]
[1747736912869,21.00168231,166.66,166.62,18.64964886]
[1747736913772,6.00024,166.66,166.62,18.64964886]
[1747736917669,5.99916011,166.69,166.64,18.64964886]
[1747736919978,20.9970604,166.69,166.64,18.64964886]
[1747736923581,20.9970604,166.69,166.65,17.98]
[1747736927986,5.99916011,166.69,166.65,17.98]
[1747736928872,5.99916011,166.69,166.66,18.64964886]
[1747736933487,5.99916011,166.69,166.63,27.6302]
[1747736933488,20.9970604,166.69,166.63,27.6302]
[1747736933690,20.9970604,166.69,166.65,18.64964886]
[1747736934898,5.99916011,166.69,166.67,18.64964886]
[1747736935107,5.99916011,166.69,166.68,17.98]
[1747736935868,14.9959128,166.72,166.68,17.98]
[1747736942597,5.99772086,166.73,166.69,18.64964886]
[1747736942977,5.99772086,166.73,166.69,20.29584886]
[1747736944094,14.9933967,166.75,166.69,20.29584886]
[1747736947011,14.9933967,166.75,166.69,46.29584886]
[1747736952008,5.99664188,166.76,166.69,26.29491838]
[1747736952902,5.99556328,166.79,166.71,18.64964886]
[1747736953132,5.99556328,166.79,166.73,18.64964886]
[1747736953299,5.99556328,166.79,166.75,18.64964886]
[1747736954409,5.99520383,166.8,166.75,18.64964886]
[1747736955790,5.99520383,166.8,166.76,1.6563]
[1747736956190,5.99412575,166.83,166.77,18.64964886]
[1747736956495,5.99412575,166.83,166.77,24.64588706]
[1747736956696,5.99382856,166.84,166.79,18.64964886]
[1747736956914,5.99232981,166.88,166.81,18.64964886]
[1747736958109,5.99232981,166.88,166.81,24.64438158]
[1747736959625,5.99232981,166.88,166.83,18.64964886]
[1747736961624,5.99197075,166.89,166.83,18.64964886]
[1747736964228,14.97978932,166.9,166.83,18.64964886]
[1747736966934,27.65441505,166.9,166.83,18.64964886]
[1747736967224,12.67462573,166.88,166.81,18.64964886]
[1747736967430,12.67462573,166.87,166.81,17.98]
[1747736967808,12.67462573,166.88,166.81,17.98]
[1747736968522,149.67462573,166.89,166.81,17.98]
[1747736968710,20.97315435,166.88,166.81,17.98]
[1747736974723,20.97315435,166.88,166.81,36.62964886]
[1747736975935,20.97315435,166.88,166.79,26.0]
[1747736976238,63.60942916,166.88,166.8,36.60964886]
[1747736976419,137.0,166.87,166.8,36.60964886]
[1747736976608,63.60942916,166.88,166.79,26.0]
[1747736976609,137.0,166.86,166.79,43.96]
[1747736977414,50.93480343,166.88,166.79,43.96]
[1747736977415,5.99232981,166.88,166.8,18.64964886]
[1747736977930,33.64778008,166.88,166.8,18.64964886]
[1747736978115,33.64778008,166.88,166.8,36.60964886]
[1747736979317,33.64778008,166.88,166.8,18.64964886]
[1747736980225,20.97315435,166.88,166.8,18.64964886]
[1747736981840,5.99232981,166.88,166.83,26.0]
[1747736982944,5.99197075,166.89,166.83,26.0]
[1747736985430,5.99197075,166.89,166.84,18.64964886]
[1747736988037,20.97189764,166.89,166.83,26.0]
[1747736991146,5.99197075,166.89,166.84,36.60964886]
[1747736992143,5.99197075,166.89,166.84,38.20034886]
[1747736992446,142.99172317,166.9,166.84,50.2305707]
[1747736992944,142.99172317,166.9,166.85,3.42357989]
[1747736993136,5.99017611,166.94,166.88,18.64964886]
[1747736993446,5.99017611,166.94,166.89,17.96]
[1747736993840,20.96561638,166.94,166.89,17.96]
[1747736994037,20.96184942,166.97,166.89,17.96]
[1747736994734,50.90734861,166.97,166.89,17.96]
[1747736994929,12.95894887,166.96,166.87,26.0]
[1747736995126,12.67462573,166.95,166.86,17.96]
[1747736995330,12.67462573,166.94,166.86,17.96]
[1747736996350,20.96687233,166.93,166.85,62.60964886]
[1747736996552,137.28432314,166.92,166.84,1.5907]
[1747736996730,12.67462573,166.89,166.82,18.64964886]
[1747736996932,12.67462573,166.87,166.79,1.5804]
[1747736997339,12.67462573,166.88,166.79,27.5804]
[1747736997855,0.28432314,166.89,166.8,22.08251738]
[1747736998327,20.97315435,166.88,166.8,22.08251738]
[1747736998852,20.97315435,166.88,166.81,3.43286852]
[1747737000430,27.65545027,166.88,166.81,3.43286852]
[1747737000729,12.67462573,166.87,166.81,3.43286852]
[1747737000924,27.65545027,166.88,166.81,3.43286852]
[1747737002052,14.98082454,166.88,166.8,22.08251738]
[1747737003558,12.67462573,166.86,166.8,3.43286852]
[1747737003729,149.67462573,166.85,166.8,3.43286852]
[1747737003925,149.95894887,166.84,166.8,3.43286852]
[1747737004240,12.67462573,166.81,166.8,3.43286852]
[1747737004554,18.9537933,166.81,166.8,3.43286852]
[1747737004752,5.99484443,166.81,166.8,3.43286852]
[1747737005559,5.99484443,166.81,166.73,28.08008326]
[1747737005853,5.99448507,166.82,166.73,28.08008326]
[1747737006453,26.0,166.79,166.73,22.08251738]
[1747737006756,26.0,166.79,166.73,18.64964886]
[1747737008054,26.0,166.81,166.73,24.647361]
[1747737008248,14.98426639,166.85,166.74,18.64964886]
[1747737008446,5.99376648,166.84,166.74,18.64964886]
[1747737009050,5.99376648,166.84,166.74,44.64964886]
[1747737009647,20.97818268,166.84,166.74,44.64964886]
[1747737009958,33.65280841,166.84,166.74,62.62964886]
[1747737010133,12.95894887,166.83,166.74,36.62964886]
[1747737010328,149.67462573,166.82,166.74,18.64964886]
[1747737010529,149.67462573,166.82,166.73,18.64964886]
[1747737011046,149.67462573,166.81,166.72,24.5224]
[1747737011251,137.0,166.8,166.72,24.5224]
[1747737011769,137.0,166.79,166.71,20.25524886]
[1747737012068,20.9857297,166.78,166.71,20.25524886]
[1747737012370,12.95894887,166.77,166.69,8.42046135]
[1747737012560,12.95894887,166.77,166.68,17.98]
[1747737012747,0.28432314,166.77,166.68,17.98]
[1747737013256,0.28432314,166.75,166.67,1.5517]
[1747737013947,20.99076406,166.74,166.67,27.5517]
[1747737014359,5.99736116,166.74,166.68,18.64964886]
[1747737015951,20.98749742,166.77,166.68,24.64916666]
[1747737016571,20.98749742,166.77,166.68,42.62916666]
[1747737017070,20.98749742,166.77,166.68,36.62964886]
[1747737017262,20.98749742,166.77,166.68,42.62912211]
[1747737018447,20.98749742,166.77,166.68,36.62964886]
[1747737018649,33.66212315,166.77,166.68,36.62964886]
[1747737020869,20.98749742,166.77,166.68,36.62964886]
[1747737021049,20.98749742,166.77,166.68,42.6291548]
[1747737021360,137.0,166.76,166.68,26.0]
[1747737021570,149.67462573,166.76,166.68,26.0]
[1747737021857,137.0,166.75,166.68,26.0]
[1747737022460,20.99076406,166.74,166.68,26.0]
[1747737023568,20.99076406,166.74,166.65,26.1723]
[1747737023569,149.67462573,166.73,166.65,6.2923]
[1747737023743,149.67462573,166.73,166.65,32.2923]
[1747737024457,137.0,166.73,166.65,32.2923]
[1747737024765,20.99328214,166.72,166.65,32.2923]
[1747737026168,5.99808061,166.72,166.66,18.64964886]
[1747737026656,5.99808061,166.72,166.66,24.64983404]
[1747737027157,5.99808061,166.72,166.66,18.64964886]
[1747737028035,5.99808061,166.72,166.65,32.2923]
[1747737028036,20.99328214,166.72,166.65,32.2923]
[1747737028240,20.99328214,166.72,166.65,50.2723]
[1747737029062,5.99808061,166.72,166.66,18.64964886]
[1747737030441,5.99808061,166.72,166.66,24.64982598]
[1747737030757,5.99808061,166.72,166.66,18.64964886]
[1747737032766,20.99328214,166.72,166.66,18.64964886]
[1747737033956,20.99328214,166.72,166.65,43.98]
[1747737035371,20.99328214,166.72,166.65,17.98]
[1747737035372,137.0,166.71,166.65,17.98]
[1747737036873,20.99580082,166.7,166.65,17.98]
[1747737039072,20.99580082,166.7,166.63,27.6632]
[1747737039366,20.99580082,166.7,166.64,17.98]
[1747737039565,12.95894887,166.69,166.59,20.21374886]
[1747737039782,12.95894887,166.69,166.54,232.80046135]
[1747737039783,12.67462573,166.65,166.57,17.98]
[1747737039980,149.67462573,166.64,166.57,17.98]
[1747737040149,0.28432314,166.63,166.57,17.98]
[1747737040656,137.0,166.64,166.57,17.98]
[1747737041150,137.0,166.64,166.58,26.0]
[1747737041475,143.00096134,166.64,166.58,26.0]
[1747737042879,137.0,166.64,166.59,18.64964886]
[1747737043471,137.0,166.64,166.59,24.65240407]
[1747737044248,137.0,166.64,166.59,18.64964886]
[1747737044457,143.00109442,166.64,166.59,18.64964886]
[1747737044661,137.0,166.64,166.59,24.65234905]
[1747737046355,5.99964516,166.68,166.59,24.65234905]
[1747737046550,5.99964516,166.68,166.59,30.76304905]
[1747737046757,5.99964516,166.68,166.59,45.76995222]
[1747737047379,137.0,166.69,166.63,18.64964886]
[1747737047586,21.414,166.71,166.64,17.98]
[1747737047757,5.99905413,166.7,166.64,17.98]
[1747737048780,20.99605472,166.7,166.64,17.98]
[1747737049580,33.67068045,166.7,166.64,17.98]
[1747737051784,33.67068045,166.7,166.62,26.0]
[1747737053762,26.0,166.67,166.61,36.62964886]
[1747737055518,20.99605472,166.7,166.61,17.98]
[1747737055519,6.00024,166.66,166.61,17.98]
[1747737055716,6.00024,166.66,166.59,25.9507]
[1747737055913,6.00024,166.66,166.59,43.9307]
[1747737056812,15.00060002,166.66,166.58,20.31194886]
[1747737056985,15.00060002,166.66,166.55,6.5169]
[1747737056986,149.95894887,166.65,166.55,6.5169]
[1747737057186,149.95894887,166.65,166.56,17.98]
[1747737057187,0.28432314,166.63,166.56,17.98]
[1747737057719,0.28432314,166.63,166.55,6.5169]
[1747737057895,0.28432314,166.63,166.54,58.07934886]
[1747737058246,0.28432314,166.63,166.54,38.25934886]
[1747737058416,12.95894887,166.63,166.54,64.25934886]
[1747737058589,12.95894887,166.63,166.54,38.25934886]
[1747737058793,21.00588164,166.62,166.54,38.25934886]
[1747737059114,21.00588164,166.62,166.54,64.25934886]
[1747737059419,21.00588164,166.62,166.54,1.6297]
[1747737060401,6.00168047,166.62,166.54,1.6297]
[1747737060804,6.00132029,166.63,166.55,6.00420294]
[1747737061193,6.00132029,166.63,166.54,7.634148]
[1747737061194,21.00462101,166.63,166.54,7.634148]
[1747737062317,6.00132029,166.63,166.56,26.0]
[1747737064528,21.00462101,166.63,166.56,26.0]
[1747737064699,33.67924674,166.63,166.56,26.0]
[1747737065606,21.00462101,166.63,166.56,26.0]
[1747737066307,21.00462101,166.63,166.54,1.6297]
[1747737067339,0.28432314,166.62,166.54,1.6297]
[1747737067509,12.95894887,166.62,166.53,26.0]
[1747737067834,0.28432314,166.62,166.53,26.0]
[1747737069320,137.0,166.62,166.54,18.64964886]
[1747737070704,21.00714242,166.61,166.54,18.64964886]
[1747737072146,6.00204069,166.61,166.57,26.0]
[1747737072438,6.00204069,166.61,166.57,44.0]
[1747737072640,15.00311115,166.64,166.58,18.64964886]
[1747737073026,6.00060006,166.65,166.58,24.65275531]
[1747737073408,6.00060006,166.65,166.58,18.64964886]
[1747737073608,21.00210021,166.65,166.58,18.64964886]
[1747737074612,6.00060006,166.65,166.58,24.65272518]
[1747737075636,6.00060006,166.65,166.58,18.64964886]
[1747737076536,21.00210021,166.65,166.58,18.64964886]
[1747737082146,6.00060006,166.65,166.62,18.64964886]
[1747737082719,6.00060006,166.65,166.62,36.64964886]
[1747737082938,14.99945585,166.68,166.62,36.64964886]
[1747737083438,5.99952003,166.68,166.64,18.64964886]
[1747737083640,20.99533777,166.71,166.64,18.64964886]
[1747737085417,20.99533777,166.71,166.64,44.64964886]
[1747737087922,50.98753979,166.71,166.63,6.2475]
[1747737088128,12.67462573,166.7,166.62,26.0]
[1747737088359,137.0,166.69,166.61,45.5823]
[1747737089139,20.99832012,166.68,166.61,45.5823]
[1747737089468,137.0,166.67,166.61,26.0]
[1747737089636,0.28432314,166.63,166.54,8.42046135]
[1747737089843,12.67462573,166.62,166.54,8.42046135]
[1747737090044,181.0,166.66,166.54,8.42046135]
[1747737090045,12.95894887,166.65,166.54,34.42046135]
[1747737090280,0.28432314,166.65,166.55,18.64964886]
[1747737090568,137.0,166.66,166.55,18.64964886]
[1747737090740,149.67462573,166.66,166.57,18.64964886]
[1747737091251,21.00210021,166.65,166.57,18.64964886]
[1747737093185,12.95894887,166.64,166.54,26.0]
[1747737093465,12.95894887,166.64,166.56,26.0]
[1747737094358,21.00462101,166.63,166.56,26.0]
[1747737094965,137.0,166.62,166.56,26.0]
[1747737096554,6.00204069,166.61,166.56,26.0]
[1747737102166,6.00204069,166.61,166.57,18.64964886]
[1747737106976,6.00204069,166.61,166.56,26.0]
[1747737107553,6.00204069,166.61,166.53,1.5065]
[1747737107554,21.00714242,166.61,166.53,1.5065]
[1747737107743,21.00714242,166.61,166.54,44.0]
[1747737108557,21.00714242,166.61,166.55,18.64964886]
[1747737110549,21.00714242,166.61,166.54,44.0]
[1747737111462,137.0,166.6,166.54,44.0]
[1747737112067,137.0,166.6,166.53,20.15614886]
[1747737112251,137.0,166.6,166.52,44.0]
[1747737112449,137.0,166.6,166.52,18.0]
[1747737112679,137.0,166.6,166.52,44.0]
[1747737112869,21.00966444,166.59,166.52,18.0]
[1747737113167,137.0,166.58,166.52,18.0]
[1747737113956,6.00348201,166.57,166.52,18.0]
[1747737114150,21.01218705,166.57,166.52,18.0]
[1747737115271,21.01218705,166.57,166.5,64.42964886]
[1747737115471,21.01218705,166.57,166.5,26.0]
[1747737116351,21.01218705,166.57,166.49,36.64964886]
[1747737116972,51.02959714,166.57,166.48,27.5901]
[1747737117151,137.0,166.56,166.48,45.5901]
[1747737117347,21.01471029,166.55,166.48,27.5901]
[1747737118700,51.035725,166.55,166.48,27.5901]
[1747737119069,21.01471029,166.55,166.48,27.5901]
[1747737120564,51.035725,166.55,166.48,1.5901]
[1747737120771,51.035725,166.55,166.48,19.5901]
[1747737121276,21.01471029,166.55,166.49,18.64964886]
[1747737121764,6.00420294,166.55,166.49,18.64964886]
[1747737121979,6.00348201,166.57,166.53,18.64964886]
[1747737122192,6.00348201,166.57,166.53,36.64964886]
[1747737122375,6.00276127,166.59,166.55,18.64964886]
[1747737123667,6.00276127,166.59,166.55,44.64964886]
[1747737124473,30.00468094,166.65,166.55,44.64964886]
[1747737127169,0.28432314,166.64,166.55,44.64964886]
[1747737128492,12.95894887,166.64,166.55,26.0]
[1747737128873,12.95894887,166.64,166.54,1.5001]
[1747737129275,188.01122246,166.63,166.54,1.5001]
[1747737129972,200.68584819,166.63,166.54,1.5001]
[1747737130773,188.01122246,166.63,166.54,1.5001]
[1747737130968,200.68584819,166.63,166.54,1.5001]
[1747737131385,188.01122246,166.63,166.54,1.5001]
[1747737132802,188.01122246,166.63,166.55,18.64964886]
[1747737133486,0.28432314,166.62,166.54,1.5001]
[1747737133993,0.28432314,166.62,166.53,26.0]
[1747737134212,0.28432314,166.58,166.5,50.178]
[1747737134410,137.0,166.57,166.5,50.178]
[1747737134906,21.01344859,166.56,166.5,6.178]
[1747737135131,21.01344859,166.56,166.5,32.178]
[1747737135421,21.01344859,166.56,166.5,26.0]
[1747737135716,21.01344859,166.56,166.49,19.5493]
[1747737135923,149.95894887,166.55,166.46,2.85256315]
[1747737136085,0.28432314,166.53,166.46,20.85256315]
[1747737136796,21.01849627,166.52,166.46,20.85256315]
[1747737138992,21.01849627,166.52,166.46,2.85256315]
[1747737139528,51.04491952,166.52,166.46,2.85256315]
[1747737141587,21.01849627,166.52,166.46,2.85256315]
[1747737142495,51.04491952,166.52,166.46,2.85256315]
[1747737143712,21.01849627,166.52,166.46,2.85256315]
[1747737145296,21.01849627,166.52,166.47,1.56]
[1747737147413,21.01849627,166.52,166.48,18.64964886]
[1747737147618,21.01849627,166.52,166.48,36.64964886]
[1747737147796,15.01321162,166.52,166.48,36.64964886]
[1747737149008,15.01321162,166.52,166.48,18.0]
[1747737153420,15.01321162,166.52,166.46,2.85256315]
[1747737154409,21.01849627,166.52,166.46,2.85256315]
[1747737155321,51.04491952,166.52,166.46,2.85256315]
[1747737157340,0.28432314,166.51,166.46,2.85256315]
[1747737157630,51.04491952,166.52,166.46,2.85256315]
[1747737160823,0.28432314,166.51,166.46,2.85256315]
[1747737161326,21.02102101,166.5,166.46,2.85256315]
[1747737162418,158.02102101,166.5,166.46,2.85256315]
[1747737163725,0.28432314,166.48,166.46,2.85256315]
[1747737165028,0.28432314,166.49,166.46,2.85256315]
[1747737165624,6.00672753,166.48,166.46,2.85256315]
[1747737168108,137.0,166.47,166.46,2.85256315]
[1747737169236,6.00672753,166.48,166.46,2.85256315]
[1747737170029,47.02228361,166.49,166.46,2.85256315]
[1747737170850,0.28432314,166.48,166.46,2.85256315]
[1747737172540,6.2914115,166.47,166.46,2.85256315]
[1747737176743,18.96603723,166.47,166.46,2.85256315]
[1747737177727,6.2914115,166.47,166.46,2.85256315]
[1747737177928,18.96603723,166.47,166.46,2.85256315]
[1747737178432,6.2914115,166.47,166.46,2.85256315]
[1747737179329,18.96603723,166.47,166.46,2.85256315]
[1747737179748,6.2914115,166.47,166.46,2.85256315]
[1747737180820,6.00708836,166.47,166.46,2.85256315]
[1747737181826,6.00672753,166.48,166.46,2.85256315]
[1747737183956,15.01591687,166.49,166.46,2.85256315]
[1747737184638,0.28432314,166.48,166.46,2.85256315]
[1747737185030,15.01591687,166.49,166.46,2.85256315]
[1747737185826,21.02228361,166.49,166.46,2.85256315]
[1747737186557,6.00636674,166.49,166.46,2.85256315]
[1747737187434,0.28432314,166.48,166.46,2.85256315]
[1747737189253,6.00708836,166.47,166.46,2.85256315]
[1747737191160,6.00672753,166.48,166.46,2.85256315]
[1747737197049,137.0,166.47,166.46,2.85256315]
[1747737197549,143.00708836,166.47,166.46,2.85256315]
[1747737197862,6.006006,166.5,166.46,2.85256315]
[1747737198038,6.006006,166.5,166.47,7.9545]
[1747737199151,137.0,166.54,166.47,7.9545]
[1747737199152,137.0,166.54,166.48,18.64964886]
[1747737199562,6.00492403,166.53,166.48,18.64964886]
[1747737199944,6.00348201,166.57,166.48,24.6562442]
[1747737200137,21.01218705,166.57,166.48,45.1162442]
[1747737200344,21.01218705,166.57,166.49,1.5759]
[1747737200545,21.01218705,166.57,166.5,18.02]
[1747737200747,0.28432314,166.56,166.5,18.02]
[1747737201063,12.95894887,166.56,166.5,18.02]
[1747737201464,51.02959714,166.57,166.5,18.02]
[1747737202269,21.01218705,166.57,166.5,18.02]
[1747737202569,21.01218705,166.57,166.51,18.64964886]
[1747737202952,6.00348201,166.57,166.51,18.64964886]
[1747737203767,15.00800348,166.58,166.51,18.64964886]
[1747737203768,21.0111251,166.58,166.51,18.64964886]
[1747737207578,21.0111251,166.58,166.52,6.1941]
[1747737208490,6.00312162,166.58,166.55,26.0]
[1747737208670,6.00312162,166.58,166.56,20.23874886]
[1747737210565,15.00535917,166.61,166.56,20.23874886]
[1747737211978,15.00535917,166.61,166.56,1.5891]
[1747737213977,15.00535917,166.61,166.56,20.23874886]
[1747737215072,15.00535917,166.61,166.56,1.5891]
[1747737215263,15.00535917,166.61,166.53,44.0]
[1747737215464,27.6799849,166.61,166.53,44.0]
[1747737215658,15.00535917,166.61,166.53,44.0]
[1747737215865,137.28432314,166.6,166.53,26.0]
[1747737216174,137.28432314,166.6,166.53,18.0]
[1747737216886,21.00966444,166.59,166.53,18.0]
[1747737217585,51.02347079,166.59,166.53,18.0]
[1747737218181,51.02347079,166.59,166.52,26.38154886]
[1747737218361,51.02347079,166.59,166.53,18.0]
[1747737219594,137.0,166.58,166.53,18.0]
[1747737220271,137.0,166.58,166.52,1.5378]
[1747737220877,188.02959714,166.57,166.52,1.5378]
[1747737223525,137.0,166.56,166.49,44.0]
[1747737224089,137.0,166.56,166.49,18.0]
[1747737224596,137.0,166.56,166.5,18.64964886]
[1747737225079,6.00420294,166.55,166.5,18.64964886]
[1747737226075,21.01471029,166.55,166.5,18.64964886]
[1747737226276,21.01471029,166.55,166.49,18.0]
[1747737227512,21.01471029,166.55,166.5,18.64964886]
[1747737228868,6.00420294,166.55,166.5,18.64964886]
[1747737231530,6.00420294,166.55,166.53,26.0]
[1747737231713,6.00276127,166.59,166.54,38.26424886]
[1747737232515,6.00168047,166.62,166.54,38.26424886]
[1747737232804,15.00396087,166.63,166.54,44.26870545]
[1747737233009,15.00396087,166.63,166.57,26.0]
[1747737233189,15.00396087,166.63,166.58,18.64964886]
[1747737233592,20.99958,166.67,166.58,18.64964886]
[1747737234414,20.99958,166.67,166.59,18.0]
[1747737235012,0.28432314,166.66,166.59,18.0]
[1747737235201,12.95894887,166.66,166.59,18.0]
[1747737236119,51.00510051,166.65,166.59,18.0]
[1747737236415,12.95894887,166.64,166.57,26.0]
[1747737237315,0.28432314,166.64,166.57,26.0]
[1747737237512,0.28432314,166.62,166.55,18.0]
[1747737238209,51.01734588,166.61,166.55,18.0]
[1747737238818,51.01734588,166.61,166.54,27.6146]
[1747737242298,21.00714242,166.61,166.55,18.64964886]
[1747737242523,6.00204069,166.61,166.55,18.64964886]
[1747737242706,6.00204069,166.61,166.56,18.0]
[1747737243103,15.00301871,166.64,166.56,18.0]
[1747737244017,15.00301871,166.64,166.58,18.64964886]
[1747737244219,15.00301871,166.64,166.57,3.43871208]
[1747737245526,15.00301871,166.64,166.57,18.64964886]
[1747737245927,6.00060006,166.65,166.56,18.0]
[1747737246113,6.00060006,166.65,166.6,18.64964886]
[1747737246512,21.00210021,166.65,166.6,18.64964886]
[1747737246716,21.00210021,166.65,166.59,26.0]